Cogmind - Beta 10.1 @@@ ROGUE MODE // 2020.09.22 @ 19:23:13 Player: TheCinephile Result: Destroyed by G-47 Trooper with Particle Gun Performance ------------- Evolutions (3) 1500 Regions Visited (5) 1000 Robots Destroyed (32) 160 Value Destroyed (835) 835 Prototype IDs (1) 20 Alien Tech Used (0) 0 Bonus (0) 0 TOTAL SCORE: 3515 Bonus ------- None Cogmind --------- Core Integrity 0/700 Matter 208/300 Energy 147/400 System Corruption 4% Temperature Cool (18) Movement Core (50) Location -7/Factory Parts ------- > --- POWER (2) -------- (None) > --- PROPULSION (4) --- (None) > --- UTILITY (4) ------ Compact Battery > --- WEAPON (3) ------- Scythe > --- INVENTORY (4) ---- Gravmag System Improved Cooling System Recalibrator Peak State ------------ > --- POWER ------------ (None) > --- PROPULSION ------- Armored Wheel Armored Wheel Armored Wheel Gravmag System > --- UTILITY ---------- Improved Cooling System Structural Scanner Advanced Terrain Scan Processor Microactuators > --- WEAPON ----------- Shock Rifle Flak Gun Scythe > --- INVENTORY -------- Armored Wheel Improved Cooling System Scythe [Rating: 33] Favorites ----------- Power Ion Engine Engine Ion Engine Propulsion Aluminum Leg Leg Aluminum Leg Wheel Armored Wheel Hover Unit Hover Unit Utility Structural Scanner Device Structural Scanner Storage High-capacity Matter Pod Processor Improved Targeting Computer Weapon Mini Grenade Launcher Energy Gun Shock Rifle Ballistic Gun High-powered Shotgun Launcher Mini Grenade Launcher Slashing Weapon Scythe Build | -11 -10 -10 -9 -8 -7 ------- Run | Scr Mat Min Mat Mat Fac Slots Evolved 6 | . . . 2 2 2 Power 1 | . . . 1 . . Propulsion 2 | . . . . 1 1 Utility 2 | . . . 1 1 . Weapon 1 | . . . . . 1 Parts Attached 53 | 5 4 5 8 6 25 Power 3 | 1 . . 2 . . Engine 3 | 1 . . 2 . . Core . | . . . . . . Reactor . | . . . . . . Propulsion 18 | 2 . 4 3 2 7 Treads . | . . . . . . Leg 11 | 2 . 4 2 2 1 Wheel 4 | . . . . . 4 Hover 3 | . . . 1 . 2 Flight . | . . . . . . Utility 18 | . 2 1 2 3 10 Device 12 | . . 1 1 3 7 Storage 3 | . . . 1 . 2 Processor 3 | . 2 . . . 1 Hackware . | . . . . . . Protection . | . . . . . . Artifact . | . . . . . . Weapon 14 | 2 2 . 1 1 8 Energy Gun 4 | 1 . . . . 3 Energy Cannon . | . . . . . . Ballistic Gun 4 | 1 . . . 1 2 Ballistic Cannon . | . . . . . . Launcher 3 | . 2 . 1 . . Special Weapon . | . . . . . . Impact Weapon . | . . . . . . Slashing Weapon 3 | . . . . . 3 Piercing Weapon . | . . . . . . Special Melee Weapon . | . . . . . . Unidentified Prototypes 1 | . . . . . 1 Parts Lost 25 | . . . 3 1 21 Power 3 | . . . 1 1 1 Propulsion 7 | . . . . . 7 Utility 7 | . . . . . 7 Weapon 8 | . . . 2 . 6 Highest Loss Streak 11 | . . . 2 1 11 Average Slot Usage (%) 81 | . 85 100 91 96 58 Engine 11 | . 14 14 18 16 1 Leg 17 | . 28 28 20 27 3 Wheel 2 | . . . . . 8 Device 16 | . . 3 19 21 21 Storage 3 | . . . 1 9 2 Processor 9 | . 14 24 11 5 2 Energy Gun 2 | . 6 . . . 3 Ballistic Gun 3 | . 5 . . 7 4 Launcher 11 | . 14 28 18 9 1 Slashing Weapon 1 | . . . . . 4 Naked Turns 35 | . . . . . 35 Heaviest Build 21 | 6 6 6 16 21 21 Greatest Support 48 | 20 20 20 26 36 48 Greatest Overweight (x) 4 | . . . 2 1 4 Average Overweight (x) . | . . . . . . Largest Inventory Capacity 4 | 4 4 4 4 4 4 Average Capacity 4 | 4 4 4 4 4 4 Most Carried 4 | 4 4 4 4 4 4 Average Carried 2 | 2 3 3 2 3 2 Final Capacity 4 | 4 4 4 4 4 4 Final Carried 4 | 3 4 3 4 4 3 Class Distribution -------------------- 50% | Mutant 26% | Infiltrator-Mutant 16% | Scavenger-Mutant 3% | Bomber Dominant Class ---------------- Mutant | -10/Materials Mutant | -10/Mines Infiltrator-Mutant | -9/Materials Scavenger-Mutant | -8/Materials Mutant | -7/Factory Resources | -11 -10 -10 -9 -8 -7 ----------- Run | Scr Mat Min Mat Mat Fac Matter Collected 797 | 217 . 49 375 88 68 Remotely . | . . . . . . Salvage Created 677 | 39 . 57 245 140 196 Parts 38 | 2 . 3 17 10 6 Haulers Intercepted . | . . . . . . Recyclers Shooed . | . . . . . . Parts Field Recycled . | . . . . . . Retrieved Matter . | . . . . . . Parts Self-Destructed . | . . . . . . Prevented . | . . . . . . Kills | -11 -10 -10 -9 -8 -7 ------- Run | Scr Mat Min Mat Mat Fac Combat Hostiles Destroyed 22 | 1 . 2 7 3 9 Melee 6 | . . . . . 6 Guns 2 | 1 . . . 1 . AOE 14 | . . 2 7 2 3 Classes Destroyed 9 | 1 . . 6 1 1 Worker 1 | . . . . 1 . Builder 4 | . . . 4 . . Recycler 1 | . . . 1 . . Operator 1 | . . . 1 . . Watcher 3 | . . . 3 . . Grunt 10 | 1 . 2 4 . 3 Duelist 1 | . . . 1 . . Sentry 5 | . . . 2 3 . Assembled 6 | . . . . . 6 Best Kill Streak 5 | 1 . 2 5 2 3 Combat Bots Only 3 | 1 . 2 2 1 3 Max Kills in Single Turn 4 | 1 . 2 4 1 1 Gunslinging . | . . . . . . Exploded 2 | . . 2 2 1 1 Melee 1 | . . . . . 1 Uniques/NPCs Destroyed . | . . . . . . Combat | -11 -10 -10 -9 -8 -7 -------- Run | Scr Mat Min Mat Mat Fac Damage Taken 3062 | 43 18 128 449 313 2111 Core 1013 | 11 18 51 137 94 702 Absorbed by Shields 66 | . . . . . 66 Core Remaining (%) 77 | 95 . 68 65 82 . Volleys Fired 35 | 4 1 2 15 6 7 Largest 3 | 2 2 2 2 2 3 Hottest 108 | 60 60 60 60 55 108 Shots Fired 61 | 7 2 4 23 10 15 Gun 27 | 7 2 . . 6 12 Cannon . | . . . . . . Launcher 34 | . . 4 23 4 3 Special . | . . . . . . Kinetic 16 | 4 1 . . 6 5 Thermal 5 | . . . . . 5 Explosive 34 | . . 4 23 4 3 Electromagnetic 6 | 3 1 . . . 2 Robot Hit Streak 21 | 4 . 2 21 2 3 Robot Miss Streak 4 | 1 2 . 1 3 4 Penetration Max . | . . . . . . Secondary Targets . | . . . . . . Shots Hit Robots 46 | 5 . 2 20 6 13 Core Hits 66 | 2 . 4 24 9 27 Critical Hits 1 | . . . . . 1 Critical Kills . | . . . . . . Critical Parts Destroyed 1 | . . . . . 1 Melee Attacks 11 | . . . . . 11 Impact . | . . . . . . Slashing 11 | . . . . . 11 Piercing . | . . . . . . Sneak Attacks . | . . . . . . Combat Hostiles . | . . . . . . Follow-up Attacks . | . . . . . . Damage Inflicted 2606 | 57 . 160 1427 206 756 Guns 243 | 57 . . . 81 105 Cannons . | . . . . . . Explosions 2023 | . . 160 1417 125 321 Melee 275 | . . . . . 275 Ramming 65 | . . . 10 . 55 Kinetic 139 | 17 . . . 81 41 Thermal 64 | . . . . . 64 Explosive 2023 | . . 160 1417 125 321 Electromagnetic 40 | 40 . . . . . Impact . | . . . . . . Slashing 275 | . . . . . 275 Piercing . | . . . . . . Highest Corruption 4 | . . . . . 4 Average Corruption 3 | . . . . . 3 Corruption Purged . | . . . . . . Effects 1 | . . . . . 1 Parts Rejected 1 | . . . . . 1 Overload Shots . | . . . . . . Overflow Damage 138 | . . . 137 . 1 Projectiles . | . . . . . . Explosions 138 | . . . 137 . 1 Melee . | . . . . . . Knockbacks . | . . . . . . Impact . | . . . . . . Kinetic . | . . . . . . Secondary . | . . . . . . Self-Inflicted Damage 615 | . . 129 239 84 163 Shots 18 | . . 3 8 4 3 Rammed 37 | . . . 7 . 30 Targets Rammed 37 | . . . 7 . 30 Kicked . | . . . . . . Crushed . | . . . . . . Highest Temperature 56 | 26 20 . 17 6 56 Average Temperature 12 | 14 15 . 6 3 21 Received Heat Transfer 885 | 24 9 . 81 99 672 Siege Activations . | . . . . . . Robots Corrupted . | . . . . . . Combat Hostiles . | . . . . . . Parts Fried . | . . . . . . Impact Corruptions . | . . . . . . Robots Melted . | . . . . . . Combat Hostiles . | . . . . . . Parts Melted . | . . . . . . Heat Transferred 148 | . . . . . 148 Parts Sabotaged . | . . . . . . Parts Stolen . | . . . . . . Parts Stripped . | . . . . . . Power Chain Reactions . | . . . . . . Missiles Intercepted . | . . . . . . Alert | -11 -10 -10 -9 -8 -7 ------- Run | Scr Mat Min Mat Mat Fac Peak Influence 419 | 20 28 75 390 419 196 Initial 190 | . 13 10 29 164 190 Average 138 | 1 22 28 251 274 85 Maximum Alert Level 2 | . . . 1 2 . Low Security (%) 71 | 100 100 100 25 31 100 Level 1 25 | . . . 74 56 . Level 2 2 | . . . . 12 . Level 3 . | . . . . . . Level 4 . | . . . . . . Level 5 . | . . . . . . High Security . | . . . . . . Max Security . | . . . . . . Squads Dispatched 7 | . . . 2 2 3 Investigation . | . . . . . . Extermination 2 | . . . . . 2 Reinforcement 3 | . . . 2 . 1 Assault . | . . . . . . Garrison 2 | . . . . 2 . Intercept . | . . . . . . Construction Impeded 1 | . . . 1 . . Haulers Reinforced . | . . . . . . Stealth | -11 -10 -10 -9 -8 -7 --------- Run | Scr Mat Min Mat Mat Fac Distress Signals 1 | . . . 1 . . Communications Jammed 37 | . . . . 37 . Distress Signals 37 | . . . . 37 . Times Spotted 54 | 1 5 2 15 12 19 Peak Tracking Total 9 | 1 2 2 3 5 9 Tactical Retreats 4 | . . . 3 . 1 Traps | -11 -10 -10 -9 -8 -7 ------- Run | Scr Mat Min Mat Mat Fac Traps Triggered 1 | . . . . 1 . Indirectly . | . . . . . . Trap Hack Attempts . | . . . . . . Triggered . | . . . . . . Disarmed . | . . . . . . Reprogrammed . | . . . . . . Reused . | . . . . . . Traps Extracted . | . . . . . . Installed . | . . . . . . Triggered . | . . . . . . Machines | -11 -10 -10 -9 -8 -7 ---------- Run | Scr Mat Min Mat Mat Fac Machines Disabled 8 | . . 1 5 2 . Max in Single Turn 1 | . . 1 1 1 . Machines Sabotaged . | . . . . . . Garrisons Compromised 1 | . . . . . 1 Overloaded Fab Kills . | . . . . . . Fab Network Shutdowns . | . . . . . . Hacking | -11 -10 -10 -9 -8 -7 --------- Run | Scr Mat Min Mat Mat Fac Machines Accessed 7 | . 1 . 3 2 1 Terminals 5 | . 1 . 2 1 1 Fabricators . | . . . . . . Repair Stations 1 | . . . . 1 . Recycling Units . | . . . . . . Scanalyzers 1 | . . . 1 . . Garrison Access . | . . . . . . Total Hacks 17 | . 4 . 6 5 2 Successful 10 | . 2 . 4 3 1 Failed 7 | . 2 . 2 2 1 Catastrophic 1 | . 1 . . . . Database Lockouts . | . . . . . . Manual . | . . . . . . Terminals 13 | . 4 . 5 2 2 Fabricators . | . . . . . . Repair Stations 3 | . . . . 3 . Recycling Units . | . . . . . . Scanalyzers 1 | . . . 1 . . Garrison Access . | . . . . . . Terminal Hacks 8 | . 2 . 4 1 1 Record 6 | . 1 . 4 1 . Emergency Access Points 1 | . . . . . 1 Alert Level 1 | . 1 . . . . Fabricator Hacks . | . . . . . . Repair Station Hacks 2 | . . . . 2 . Scan Component 1 | . . . . 1 . Repair 1 | . . . . 1 . Recycling Unit Hacks . | . . . . . . Scanalyzer . | . . . . . . Garrison Access Hacks . | . . . . . . Unauthorized Hacks . | . . . . . . Terminals . | . . . . . . Fabricators . | . . . . . . Repair Stations . | . . . . . . Recycling Units . | . . . . . . Scanalyzers . | . . . . . . Garrison Access . | . . . . . . Data Cores Recovered . | . . . . . . Used . | . . . . . . Hacking Detections 2 | . 1 . 1 . . Full Trace Events . | . . . . . . Feedback Events . | . . . . . . Feedback Blocked . | . . . . . . Robot Schematics Acquired . | . . . . . . Robots Built . | . . . . . . Matter . | . . . . . . Time . | . . . . . . Total Robot Build Rating . | . . . . . . Part Schematics Acquired . | . . . . . . Parts Built . | . . . . . . Matter . | . . . . . . Time . | . . . . . . Total Part Build Rating . | . . . . . . Parts Repaired 1 | . . . . 1 . Time 32 | . . . . 32 . Parts Recycled . | . . . . . . Recycled Matter . | . . . . . . Retrieved Matter . | . . . . . . Retrieved Components . | . . . . . . Parts Scanalyzed . | . . . . . . Part Schematics Acquired . | . . . . . . Parts Damaged . | . . . . . . Bothacking | -11 -10 -10 -9 -8 -7 ------------ Run | Scr Mat Min Mat Mat Fac Used RIF Installer . | . . . . . . Robots Hacked . | . . . . . . Non-combat . | . . . . . . Combat . | . . . . . . Robot Hacks Applied . | . . . . . . Relay Couplers Released . | . . . . . . Robots Rewired . | . . . . . . Allies Hacked . | . . . . . . Hacks Repelled . | . . . . . . Allies | -11 -10 -10 -9 -8 -7 -------- Run | Scr Mat Min Mat Mat Fac Total Allies . | . . . . . . Largest Group . | . . . . . . Highest-Rated Group . | . . . . . . Highest-Rated Ally . | . . . . . . Total Orders . | . . . . . . Ally Attacks . | . . . . . . Total Damage . | . . . . . . Kills . | . . . . . . Allies Corrupted . | . . . . . . Allies Melted . | . . . . . . Intel | -11 -10 -10 -9 -8 -7 ------- Run | Scr Mat Min Mat Mat Fac Robot Analysis Total . | . . . . . . Derelict Logs Recovered 1 | . . 1 . . . Drone Launches . | . . . . . . Drone Recoveries . | . . . . . . Exploration | -11 -10 -10 -9 -8 -7 ------------- Run | Scr Mat Min Mat Mat Fac Turns Passed 1893 | 95 184 232 359 385 638 Spaces Moved 1262 | 75 120 178 171 269 449 Core 175 | 25 . . . . 150 Treads . | . . . . . . Legs 869 | 50 120 178 161 269 91 Wheels 157 | . . . . . 157 Hover 61 | . . . 10 . 51 Flight . | . . . . . . Fastest Speed 50 | 50 120 120 120 120 50 Average Speed 113 | 96 120 120 128 120 102 Slowest Speed 250 | 120 120 120 180 150 250 Overloaded Moves . | . . . . . . Propulsion Burnouts . | . . . . . . Robots Hopped . | . . . . . . Cave-ins Triggered . | . . . . . . Exploration Rate (%) 20 | 6 19 43 16 24 12 Regions Visited 5 Branch Regions 1 Pre-discovered Areas . | . . . . . . Known Exits Taken . | . . . . . . Unknown Exits Taken 5 | 1 1 1 1 1 . Scrap Searched 1 | . . 1 . . . Spaces Dug . | . . . . . . Terrain Destroyed 207 | . . 33 123 32 19 Melee . | . . . . . . Projectile . | . . . . . . AOE 207 | . . 33 123 32 19 Terrain Rammed . | . . . . . . Walls Destroyed . | . . . . . . Machines Disabled . | . . . . . . Actions | -11 -10 -10 -9 -8 -7 --------- Run | Scr Mat Min Mat Mat Fac Total 1641 | 91 158 195 283 321 593 Wait 182 | . 26 . 72 33 51 Move 1257 | 74 119 177 170 268 449 Hop . | . . . . . . Pick Up 47 | 8 4 3 8 6 18 Fast Attach 5 | . 3 2 . . . Attach 36 | 5 . 1 6 5 19 Detach 1 | . . . . . 1 Swap 12 | . 1 2 2 1 6 Drop 18 | . 4 8 3 2 1 Fire 35 | 4 1 2 15 6 7 Melee 11 | . . . . . 11 Ram 30 | . . . . . 30 Kick 7 | . . . 7 . . Crush . | . . . . . . Escape Stasis . | . . . . . . Rewire . | . . . . . . Trap . | . . . . . . Miscellaneous . | . . . . . . Route ------- -11/Scrapyard -10/Materials -10/Mines -9/Materials -8/Materials -7/Factory History --------- Turn | Location | Event 2 | -11/Scrapyard | Met Revision 17 74 | -11/Scrapyard | Discovered new exit (range 8) 96 | -11/Scrapyard | Entered Materials 214 | -10/Materials | Discovered new exit (range 15) 280 | -10/Materials | Entered Mines 321 | -10/Mines | Build established: Mutant 326 | -10/Mines | Learned Materials garrison access intel 389 | -10/Mines | Discovered new exit (range 9) 512 | -10/Mines | Entered Materials 512 | -9/Materials | Evolved 2 slots: Power x1, Utility x1 805 | -9/Materials | Discovered new exit (range 11) 871 | -9/Materials | Entered another Materials area 871 | -8/Materials | Evolved 2 slots: Propulsion x1, Utility x1 872 | -8/Materials | Loaded intel: 1 garrison access location 1082 | -8/Materials | Repaired Imp. Aluminum Leg 1149 | -8/Materials | Discovered new exit (range 10) 1256 | -8/Materials | Entered Factory 1256 | -7/Factory | Evolved 2 slots: Propulsion x1, Weapon x1 1456 | -7/Factory | Core integrity fell below 50% 1487 | -7/Factory | Lost 11 parts (1p3n4u3w) 1865 | -7/Factory | Core integrity fell below 20% 1894 | -7/Factory | Destroyed by G-47 Trooper with Particle Gun Last Messages --------------- Arm. Wheel destroyed. Microactuators destroyed. L-41 Fighter suffers critical hit. Destroyed Axe. Arm. Wheel destroyed. G-47 Trooper destroyed. Structural Scanner destroyed. Imp. Cooling System destroyed. K-01 Serf cleans the Assembly Bed. Acquired Beam Rifle. K-01 Serf collects debris. System corrupted: Scythe rejected. Assembly Bed disabled. Beam Rifle destroyed. K-01 Serf collects debris. G-47 Trooper destroyed. K-01 Serf collects debris. U-05 Engineer lays Concrete. K-01 Serf collects debris. Arm. Wheel destroyed. Map ----- +----------------------------------------------------+ | ?????????????????????????????????????????????????? | | ?????????????????????????????????????????????????? | | ?????????????????????????????????????????????????? | | ?????????????????????????????????????????????????? | | ?????????????????????????????????????????????????? | | ?????????????????????????????????????????????????? | | ?????????????????????????????????????????????????? | | ?????+#??????????????????????????????????????????? | | ??? ???? ????????????????????????????????????? | | # ???? #???????????????????????????????????? | | # ! """" #???????? ??????????????????????? | | # ""F" #???????# #?????????????????????? | | # "" #???"???# #?????????????????????? | | # #"""F""## #?????????????????????? | | # #""" ""## #?????????????????????? | | # m #?????????????????????? | | # #?????????????????????? | | # #?????????????????????? | | # #?????????????????????? | | # #?????????????????????? | | # #?????????????????????? | | # """""" ########## ?????????? | | """""" ???????????? | | """""" u #??????????????? | | =!! """"" [!! = #??????????????? | | =!! k=g [!!@% #??????????????? | | !! !%p%g /!! g k #??????????????? | | #############################t###??????????????? | | #??????????????????????????????????????????????? | | #??????????????????????????????????????????????? | | #??????????????????????????????????????????????? | | #??????????????????????????????????????????????? | | #??????????????????????????????????????????????? | | #??????????????????????????????????????????????? | | #??????????????????????????????????????????????? | | #####??????????????????????????????????????????? | | ^ #??????????????????????????????????????????? | | #??????????????????????????????????????????? | | +??????????????????????????????????????????? | | #??????????????????????????????????????????? | | #??????????????????????????????????????????? | | ##### #??????????????????????????????????????????? | | ?????????????????????????????????????????????????? | | ?????????????????????????????????????????????????? | | ###??????????????????????????????????????????????? | | #??????????????????????????????????????????????? | | #??????????????????????????????????????????????? | | #??????????????????????????????????????????????? | | #??????????????????????????????????????????????? | | #??????????????????????????????????????????????? | +----------------------------------------------------+ Best States ------------- Heat Dissipation 61 Energy Generation 15 Energy Capacity 400 Matter Stores 300 Matter Capacity 500 Sight Range 16 Terrain Scan Density 210 ECM Strength 1 Jamming Range 8 Melee Speed Boost 20 Evasion (%) 50 Targeting Accuracy 12 Item Schematics ----------------- None Robot Schematics ------------------ None Fabricated ------------ Nothing Alien Tech Used ----------------- None Achievements -------------- Crack Shot Fist Fight Made in Tau Ceti IV Oops Part-time Mechanic Remodeling Risk Taker Total Silence Challenges ------------ None Game ------ Seed SubatomicShieldStorm Manual? 0 Play Time 00:43:29 Cumulative 1.9 hours Start 2020.09.22 @ 18:25:39 End 2020.09.22 @ 19:23:13 Sessions 1 Manual Loads 0 Difficulty Rogue Special Mode None Game No. 2 Rogue 2 Adventurer 0 Explorer 0 Win Type - Total 0 Types 0/0/0/0/0/0/0/0/0 Lore% 1 Gallery% 4 Achievement% 4 Wizard Run 0 Options --------- ASCII 0 Keyboard 0 Movement Numpad Keybinds 0 Fullscreen 1 Font 12/Smallcaps Map View 76x50 Tactical HUD 0 Map Filters NONE Filters NONE Steam 1 RUN: 6e5b2536-96b8-43ab-9211-3d8457e466b3